Workbook

Sheet Read_me
A1: Original (German) from: https://www.controllingportal.de/Marktplatz/Excel-Tools/Gemeinkostenumlage.html
A2: Downloaded on: 20/01/2018 11:21:00
A4: 1. Original was wrong: 2_Umlage!C11 should read: ='1_Umlage'!J28
A5: 2. Graphic gemeinkostenumlage-1.gif on https://www.controllingportal.de/Marktplatz/Excel-Tools/Gemeinkostenumlage.html also showed wrong value 625.
A6: 3. This calculation corrects this error and is calculating correctly down to the cent so that the rounded sum is identical to the sum of rounded values.
A7: 4. Now this calculation is fit for purpose with existing accounting systems.
A9: Bernd Plumhoff
A10: 2020-07-25T16:32:00

Sheet Keys
A2: Phase 1 - Allocation of overhead costs to all cost centers
C3: Overhead Cost Centers | K3: Secondary Cost Centers | N3: Primary Cost Centers
A4: Key | B4: Total | C4: Management | D4: Secretariat | E4: Accounting | F4: Controlling | G4: HR | H4: Marketing | I4: Trainees | J4: Workers Council | K4: Factory 1 | L4: Factory 2 | M4: Car Park | N4: Production1 | O4: Production2 | P4: Production3
A5: per Head | B5: =SUM(C5:P5) -> 102 | C5: 1 | D5: 1 | E5: 3 | F5: 1 | G5: 2 | H5: 3 | I5: 3 | J5: 1 | K5: 12 | L5: 10 | N5: 20 | O5: 20 | P5: 25
A6: sqm | B6: =SUM(C6:P6) -> 2685 | C6: 50 | D6: 40 | E6: 100 | F6: 30 | G6: 50 | H6: 50 | J6: 15 | K6: 250 | L6: 350 | M6: 100 | N6: 500 | O6: 550 | P6: 600
A7: uniform | B7: =SUM(C7:P7) -> 14 | C7: 1 | D7: 1 | E7: 1 | F7: 1 | G7: 1 | H7: 1 | I7: 1 | J7: 1 | K7: 1 | L7: 1 | M7: 1 | N7: 1 | O7: 1 | P7: 1
A8: Weighted | B8: =SUM(C8:P8) -> 16 | C8: 2 | D8: 1 | E8: 1 | F8: 1 | G8: 1 | H8: 2 | I8: 1 | J8: 1 | K8: 1 | L8: 1 | M8: 1 | N8: 1 | O8: 1 | P8: 1
A11: Phase 2 - Allocation of Overhead Cost Centers and Secondary Cost Centers to Primary Cost Centers
A14: Secondary Cost Center | B14: Key | C14: Production1 | D14: Production2 | E14: Production3 | F14: Total
A16: Management | B16: Weighted | C16: 0.3 | D16: 0.4 | E16: 0.3 | F16: =SUM(C16:E16) -> 1
A17: Secretariat | B17: Weighted | C17: 0.4 | D17: 0.5 | E17: 0.1 | F17: 1
A18: Accounting | B18: Weighted | C18: 0.3 | D18: 0.13 | E18: 0.57 | F18: 1
A19: Controlling | B19: uniform | C19: 1 | D19: 1 | E19: 1 | F19: 3
A20: HR | B20: per Head | C20: 20 | D20: 20 | E20: 25 | F20: 65
A21: Marketing | B21: Weighted | C21: 0.3 | D21: 0.42 | E21: 0.28 | F21: 1
A22: Trainees | B22: uniform | C22: 1 | D22: 1 | E22: 1 | F22: 3
A23: Workers Council | B23: per Head | C23: 20 | D23: 20 | E23: 25 | F23: 65
A24: Factory 1 | B24: Weighted | C24: 0.25 | D24: 0.2 | E24: 0.55 | F24: 1
A25: Factory 2 | B25: Weighted | C25: 0.2 | D25: 0.2 | E25: 0.6 | F25: 1
A26: Car Park | B26: Weighted | C26: 0.4 | D26: 0.3 | E26: 0.3 | F26: 1

Sheet 1_Allocation
A1: Allocation of overhead costs to all cost centers
D3: Overhead Cost Centers | L3: Secondary Cost Centers | O3: Primary Cost Centers | R3: Total
A4: Cost Category | B4: Key | C4: Overhead Costs | D4: Management | E4: Secretariat | F4: Accounting | G4: Controlling | H4: HR | I4: Marketing | J4: Trainees | K4: Workers Council | L4: Factory 1 | M4: Factory 2 | N4: Car Park | O4: Production1 | P4: Production2 | Q4: Production3
A5: Travel expenses | B5: Weighted | C5: 10000 | D5: =RoundToSum($C5/Keys!$B$8*Keys!C$8:P$8) -> 1250 | E5: 625 | F5: 625 | G5: 625 | H5: 625 | I5: 1250 | J5: 625 | K5: 625 | L5: 625 | M5: 625 | N5: 625 | O5: 625 | P5: 625 | Q5: 625 | R5: =SUM(D5:Q5) -> 10000
A6: Supervisory board | B6: uniform | C6: 3000 | D6: =RoundToSum($C6/Keys!$B$8*Keys!C$8:P$8) -> 375 | E6: 187.5 | F6: 187.5 | G6: 187.5 | H6: 187.5 | I6: 375 | J6: 187.5 | K6: 187.5 | L6: 187.5 | M6: 187.5 | N6: 187.5 | O6: 187.5 | P6: 187.5 | Q6: 187.5 | R6: 3000
A7: Hospitality | B7: Weighted | C7: 2000 | D7: =RoundToSum($C7/Keys!$B$8*Keys!C$8:P$8) -> 250 | E7: 125 | F7: 125 | G7: 125 | H7: 125 | I7: 250 | J7: 125 | K7: 125 | L7: 125 | M7: 125 | N7: 125 | O7: 125 | P7: 125 | Q7: 125 | R7: 2000
A8: Presents | B8: Weighted | C8: 1000 | D8: =RoundToSum($C8/Keys!$B$8*Keys!C$8:P$8) -> 125 | E8: 62.5 | F8: 62.5 | G8: 62.5 | H8: 62.5 | I8: 125 | J8: 62.5 | K8: 62.5 | L8: 62.5 | M8: 62.5 | N8: 62.5 | O8: 62.5 | P8: 62.5 | Q8: 62.5 | R8: 1000
A9: Fees, charges | B9: uniform | C9: 500 | D9: =RoundToSum($C9/Keys!$B$8*Keys!C$8:P$8) -> 62.5 | E9: 31.25 | F9: 31.25 | G9: 31.25 | H9: 31.25 | I9: 62.5 | J9: 31.25 | K9: 31.25 | L9: 31.25 | M9: 31.25 | N9: 31.25 | O9: 31.25 | P9: 31.25 | Q9: 31.25 | R9: 500
A10: Car costs | B10: Weighted | C10: 4500 | D10: =RoundToSum($C10/Keys!$B$8*Keys!C$8:P$8) -> 562.5 | E10: 281.25 | F10: 281.25 | G10: 281.25 | H10: 281.25 | I10: 562.5 | J10: 281.25 | K10: 281.25 | L10: 281.25 | M10: 281.25 | N10: 281.25 | O10: 281.25 | P10: 281.25 | Q10: 281.25 | R10: 4500
A11: Hardware, equipment | B11: Weighted | C11: 200 | D11: =RoundToSum($C11/Keys!$B$8*Keys!C$8:P$8) -> 25 | E11: 12.5 | F11: 12.5 | G11: 12.5 | H11: 12.5 | I11: 25 | J11: 12.5 | K11: 12.5 | L11: 12.5 | M11: 12.5 | N11: 12.5 | O11: 12.5 | P11: 12.5 | Q11: 12.5 | R11: 200
A12: External audit | B12: uniform | C12: 10000 | D12: =RoundToSum($C12/Keys!$B$8*Keys!C$8:P$8) -> 1250 | E12: 625 | F12: 625 | G12: 625 | H12: 625 | I12: 1250 | J12: 625 | K12: 625 | L12: 625 | M12: 625 | N12: 625 | O12: 625 | P12: 625 | Q12: 625 | R12: 10000
A13: Other operating expenses | B13: sqm | C13: 5500 | D13: =RoundToSum($C13/Keys!$B$8*Keys!C$8:P$8) -> 687.5 | E13: 343.75 | F13: 343.75 | G13: 343.75 | H13: 343.75 | I13: 687.5 | J13: 343.75 | K13: 343.75 | L13: 343.75 | M13: 343.75 | N13: 343.75 | O13: 343.75 | P13: 343.75 | Q13: 343.75 | R13: 5500
A14: Energy costs | B14: sqm | C14: 6000 | D14: =RoundToSum($C14/Keys!$B$8*Keys!C$8:P$8) -> 750 | E14: 375 | F14: 375 | G14: 375 | H14: 375 | I14: 750 | J14: 375 | K14: 375 | L14: 375 | M14: 375 | N14: 375 | O14: 375 | P14: 375 | Q14: 375 | R14: 6000
A15: Insurances | B15: per Head | C15: 5000 | D15: =RoundToSum($C15/Keys!$B$8*Keys!C$8:P$8) -> 625 | E15: 312.5 | F15: 312.5 | G15: 312.5 | H15: 312.5 | I15: 625 | J15: 312.5 | K15: 312.5 | L15: 312.5 | M15: 312.5 | N15: 312.5 | O15: 312.5 | P15: 312.5 | Q15: 312.5 | R15: 5000
A16: Legal costs | B16: Weighted | C16: 5000 | D16: =RoundToSum($C16/Keys!$B$8*Keys!C$8:P$8) -> 625 | E16: 312.5 | F16: 312.5 | G16: 312.5 | H16: 312.5 | I16: 625 | J16: 312.5 | K16: 312.5 | L16: 312.5 | M16: 312.5 | N16: 312.5 | O16: 312.5 | P16: 312.5 | Q16: 312.5 | R16: 5000
A17: Accounting costs | B17: Weighted | C17: 1000 | D17: =RoundToSum($C17/Keys!$B$8*Keys!C$8:P$8) -> 125 | E17: 62.5 | F17: 62.5 | G17: 62.5 | H17: 62.5 | I17: 125 | J17: 62.5 | K17: 62.5 | L17: 62.5 | M17: 62.5 | N17: 62.5 | O17: 62.5 | P17: 62.5 | Q17: 62.5 | R17: 1000
A18: Stationary | B18: Weighted | C18: 2000 | D18: =RoundToSum($C18/Keys!$B$8*Keys!C$8:P$8) -> 250 | E18: 125 | F18: 125 | G18: 125 | H18: 125 | I18: 250 | J18: 125 | K18: 125 | L18: 125 | M18: 125 | N18: 125 | O18: 125 | P18: 125 | Q18: 125 | R18: 2000
A19: Telecommunication | B19: Weighted | C19: 2500 | D19: =RoundToSum($C19/Keys!$B$8*Keys!C$8:P$8) -> 312.5 | E19: 156.25 | F19: 156.25 | G19: 156.25 | H19: 156.25 | I19: 312.5 | J19: 156.25 | K19: 156.25 | L19: 156.25 | M19: 156.25 | N19: 156.25 | O19: 156.25 | P19: 156.25 | Q19: 156.25 | R19: 2500
A20: Shipping and mailing costs | B20: Weighted | C20: 2000 | D20: =RoundToSum($C20/Keys!$B$8*Keys!C$8:P$8) -> 250 | E20: 125 | F20: 125 | G20: 125 | H20: 125 | I20: 250 | J20: 125 | K20: 125 | L20: 125 | M20: 125 | N20: 125 | O20: 125 | P20: 125 | Q20: 125 | R20: 2000
A21: Books, magazines | B21: Weighted | C21: 1000 | D21: =RoundToSum($C21/Keys!$B$8*Keys!C$8:P$8) -> 125 | E21: 62.5 | F21: 62.5 | G21: 62.5 | H21: 62.5 | I21: 125 | J21: 62.5 | K21: 62.5 | L21: 62.5 | M21: 62.5 | N21: 62.5 | O21: 62.5 | P21: 62.5 | Q21: 62.5 | R21: 1000
A22: Money transfer fees | B22: Weighted | C22: 500 | D22: =RoundToSum($C22/Keys!$B$8*Keys!C$8:P$8) -> 62.5 | E22: 31.25 | F22: 31.25 | G22: 31.25 | H22: 31.25 | I22: 62.5 | J22: 31.25 | K22: 31.25 | L22: 31.25 | M22: 31.25 | N22: 31.25 | O22: 31.25 | P22: 31.25 | Q22: 31.25 | R22: 500
A23: Damages, compensation | B23: uniform | C23: 250 | D23: =RoundToSum($C23/Keys!$B$8*Keys!C$8:P$8) -> 31.24 | E23: 15.62 | F23: 15.62 | G23: 15.62 | H23: 15.62 | I23: 31.25 | J23: 15.62 | K23: 15.63 | L23: 15.63 | M23: 15.63 | N23: 15.63 | O23: 15.63 | P23: 15.63 | Q23: 15.63 | R23: 250
A24: Working clothes | B24: Weighted | C24: 1500 | D24: =RoundToSum($C24/Keys!$B$8*Keys!C$8:P$8) -> 187.5 | E24: 93.75 | F24: 93.75 | G24: 93.75 | H24: 93.75 | I24: 187.5 | J24: 93.75 | K24: 93.75 | L24: 93.75 | M24: 93.75 | N24: 93.75 | O24: 93.75 | P24: 93.75 | Q24: 93.75 | R24: 1500
A25: Handicapped fee | B25: uniform | C25: 2000 | D25: =RoundToSum($C25/Keys!$B$8*Keys!C$8:P$8) -> 250 | E25: 125 | F25: 125 | G25: 125 | H25: 125 | I25: 250 | J25: 125 | K25: 125 | L25: 125 | M25: 125 | N25: 125 | O25: 125 | P25: 125 | Q25: 125 | R25: 2000
A26: Training and further education | B26: Weighted | C26: 2000 | D26: =RoundToSum($C26/Keys!$B$8*Keys!C$8:P$8) -> 250 | E26: 125 | F26: 125 | G26: 125 | H26: 125 | I26: 250 | J26: 125 | K26: 125 | L26: 125 | M26: 125 | N26: 125 | O26: 125 | P26: 125 | Q26: 125 | R26: 2000
A27: Other operating expenses | B27: Weighted | C27: 1500 | D27: =RoundToSum($C27/Keys!$B$8*Keys!C$8:P$8) -> 187.5 | E27: 93.75 | F27: 93.75 | G27: 93.75 | H27: 93.75 | I27: 187.5 | J27: 93.75 | K27: 93.75 | L27: 93.75 | M27: 93.75 | N27: 93.75 | O27: 93.75 | P27: 93.75 | Q27: 93.75 | R27: 1500
A28: Total | C28: =SUM(C5:C27) -> 68950 | D28: =SUM(D5:D27) -> 8618.74 | E28: =SUM(E5:E27) -> 4309.37 | F28: 4309.37 | G28: 4309.37 | H28: 4309.37 | I28: 8618.75 | J28: 4309.37 | K28: 4309.38 | L28: 4309.38 | M28: 4309.38 | N28: 4309.38 | O28: 4309.38 | P28: 4309.38 | Q28: 4309.38 | R28: =SUM(D28:Q28) -> 68950
Q30: Check | R30: =R28-C28 -> 0

Sheet 2_Allocation
A1: Allocation of Overhead Cost Centers and Secondary Cost Centers to Primary Cost Centers
A3: Allocated Cost Centers | B3: Direct Costs | C3: Allocation Phase 1 | D3: Total | E3: Production1 | F3: Production2 | G3: Production3 | H3: Total
A5: Management | B5: 111666 | C5: =TRANSPOSE('1_Allocation'!D28:N28) -> 8618.74 | D5: =SUM(B5:C5) -> 120284.74 | E5: =RoundToSum($D5/Keys!$F16*Keys!C16:E16) -> 36085.42 | F5: 48113.9 | G5: 36085.42 | H5: =SUM(E5:G5) -> 120284.74
A6: Secretariat | B6: 34627 | C6: 4309.37 | D6: =SUM(B6:C6) -> 38936.37 | E6: =RoundToSum($D6/Keys!$F17*Keys!C17:E17) -> 15574.55 | F6: 19468.18 | G6: 3893.64 | H6: =SUM(E6:G6) -> 38936.37
A7: Accounting | B7: 96834 | C7: 4309.37 | D7: 101143.37 | E7: =RoundToSum($D7/Keys!$F18*Keys!C18:E18) -> 30343.01 | F7: 13148.64 | G7: 57651.72 | H7: 101143.37
A8: Controlling | B8: 83875 | C8: 4309.37 | D8: 88184.37 | E8: =RoundToSum($D8/Keys!$F19*Keys!C19:E19) -> 29394.79 | F8: 29394.79 | G8: 29394.79 | H8: 88184.37
A9: HR | B9: 53765 | C9: 4309.37 | D9: 58074.37 | E9: =RoundToSum($D9/Keys!$F20*Keys!C20:E20) -> 17869.04 | F9: 17869.04 | G9: 22336.29 | H9: 58074.37
A10: Marketing | B10: 239170 | C10: 8618.75 | D10: 247788.75 | E10: =RoundToSum($D10/Keys!$F21*Keys!C21:E21) -> 74336.62 | F10: 104071.28 | G10: 69380.85 | H10: 247788.75
A11: Trainees | B11: 147397 | C11: 4309.37 | D11: 151706.37 | E11: =RoundToSum($D11/Keys!$F22*Keys!C22:E22) -> 50568.79 | F11: 50568.79 | G11: 50568.79 | H11: 151706.37
A12: Workers Council | B12: 471 | C12: 4309.38 | D12: 4780.38 | E12: =RoundToSum($D12/Keys!$F23*Keys!C23:E23) -> 1470.88 | F12: 1470.89 | G12: 1838.61 | H12: 4780.38
A13: Factory 1 | B13: 125225 | C13: 4309.38 | D13: 129534.38 | E13: =RoundToSum($D13/Keys!$F24*Keys!C24:E24) -> 32383.59 | F13: 25906.88 | G13: 71243.91 | H13: 129534.38
A14: Factory 2 | B14: 2398512 | C14: 4309.38 | D14: 2402821.38 | E14: =RoundToSum($D14/Keys!$F25*Keys!C25:E25) -> 480564.27 | F14: 480564.28 | G14: 1441692.83 | H14: 2402821.38
A15: Car Park | B15: 26992 | C15: 4309.38 | D15: 31301.38 | E15: =RoundToSum($D15/Keys!$F26*Keys!C26:E26) -> 12520.55 | F15: 9390.42 | G15: 9390.41 | H15: 31301.38
A16: Phase 1 Allocation | E16: ='1_Allocation'!O28 -> 4309.38 | F16: ='1_Allocation'!P28 -> 4309.38 | G16: ='1_Allocation'!Q28 -> 4309.38 | H16: =SUM(E16:G16) -> 12928.14
A17: Phase 2 Allocation | B17: =SUM(B5:B15) -> 3318534 | C17: 56021.86 | D17: 3374555.86 | E17: 781111.51 | F17: 799967.09 | G17: 1793477.26 | H17: 3374555.86
A18: Directs Costs | E18: 738060 | F18: 854000 | G18: 650360 | H18: =SUM(E18:G18) -> 2242420
A19: Total Primary Cost Centers | E19: =SUM(E16:E18) -> 1523480.89 | F19: =SUM(F16:F18) -> 1658276.47 | G19: =SUM(G16:G18) -> 2448146.64 | H19: =SUM(H16:H18) -> 5629904 | J19: Check | K19: =H19-SUM(E18:G18)-SUM(B5:B15)-SUM('1_Allocation'!C5:C27) -> 0
A21: Overhead rate | E21: =(E17+E16)/E18 -> 1.064169431 | F21: =(F17+F16)/F18 -> 0.941775726 | G21: =(G17+G16)/G18 -> 2.764294606 | H21: =(H17+H16)/H18 -> 1.510637615

Sheet Wiederhergestellt_Tabelle1 (hidden)
